bitfinex-derivatives/quotes_ETHF0:USTF0_20250730
["timestamp","ask_amount","ask_price","bid_price","bid_amount"]
[1753909717289,21.4406,3766.8,3766.7,3.7961]
[1753909718492,0.6631,3766.7,3766.0,0.666]
[1753909718693,3.6666,3766.7,3766.6,3.7961]
[1753909718886,4.3297,3766.7,3766.6,3.7961]
[1753909719592,1.1219,3766.7,3766.6,3.7961]
[1753909719983,0.4588,3766.7,3766.6,3.7961]
[1753909720185,2.75256,3767.0,3766.9,1.5363]
[1753909720492,4.45111386,3767.0,3766.9,3.7961]
[1753909720694,3.64566,3767.0,3766.9,3.7961]
[1753909720994,3.2078,3767.1,3767.0,4.32715]
[1753909721293,25.16484,3767.8,3767.7,3.3407]
[1753909721593,26.15923092,3767.8,3767.7,2.6887]
[1753909721795,26.63371496,3767.8,3767.7,2.6887]
[1753909722498,27.10140518,3767.8,3767.7,2.6887]
[1753909722891,6.79009022,3767.8,3767.7,3.7961]
[1753909723092,0.9306,3768.4,3768.3,1.61177]
[1753909723398,2.58794829,3768.4,3768.3,4.32697]
[1753909723994,3.21574829,3768.4,3768.3,4.32697]
[1753909724195,3.92032528,3768.4,3768.3,3.7961]
[1753909724898,3.1146,3768.4,3768.3,3.7961]
[1753909725301,3.2078,3768.7,3768.6,2.06713]
[1753909725596,4.1384,3768.7,3768.6,3.7961]
[1753909725791,5.4293,3768.7,3768.6,3.7961]
[1753909725992,6.3224,3768.7,3768.6,3.7961]
[1753909726391,6.3224,3768.7,3768.6,4.32693]
[1753909726691,5.4293,3768.7,3768.6,4.32693]
[1753909726890,0.4588,3768.9,3768.8,4.3269]
[1753909727091,4.3297,3769.1,3769.0,2.06707]
[1753909727395,18.81373,3769.3,3768.4,1.32713]
[1753909727396,1.1219,3769.5,3769.4,3.7961]
[1753909727593,1.1219,3769.8,3769.7,0.62]
[1753909727798,0.80355647,3769.8,3769.7,3.7961]
[1753909727990,3.91815647,3769.8,3769.7,3.7961]
[1753909728188,4.60775647,3769.8,3769.7,3.7961]
[1753909729399,3.8042,3769.8,3769.7,3.7961]
[1753909733291,0.53065,3769.9,3769.7,2.1883]
[1753909733497,3.1146,3769.8,3769.7,1.5363]
[1753909734004,3.8042,3769.8,3769.7,3.7961]
[1753909735808,3.1146,3769.8,3769.7,3.7961]
[1753909736908,3.8042,3769.8,3769.7,3.7961]
[1753909738006,1.5937,3769.8,3769.7,3.7961]
[1753909738211,3.1146,3769.8,3769.7,3.7961]
[1753909738702,3.8104,3769.8,3769.7,3.7961]
[1753909741912,2.184,3769.8,3769.3,0.53072]
[1753909742120,3.50344,3769.3,3769.2,3.7346]
[1753909743015,3.50344,3769.3,3769.2,1.739]
[1753909743209,4.19924,3769.3,3769.2,1.739]
[1753909743406,3.2078,3769.6,3768.9,0.6581]
[1753909743407,1.53537,3769.0,3768.9,1.0487]
[1753909743606,2.67037,3769.0,3768.9,2.6517]
[1753909744110,3.50354,3768.6,3768.5,3.7346]
[1753909745317,2.9727,3768.6,3768.5,4.26544]
[1753909745507,2.9727,3768.6,3768.5,3.7346]
[1753909746717,0.53087,3768.3,3768.2,4.1205]
[1753909747016,3.50357,3768.3,3768.2,6.9424]
[1753909748614,1.713,3768.3,3768.2,6.9424]
[1753909748819,0.4392,3768.3,3768.2,6.9424]
[1753909749418,6.023,3768.8,3768.7,3.7346]
[1753909749618,7.4071,3768.8,3768.7,3.7346]
[1753909749921,7.4071,3768.8,3768.7,2.6517]
[1753909753520,8.21002149,3768.8,3768.7,2.6517]
[1753909753924,8.21002149,3768.8,3768.7,1.1441]
[1753909754120,4.19939,3768.2,3768.1,3.7346]
[1753909754320,4.19939,3768.2,3768.1,2.6517]
[1753909756216,4.19939,3768.2,3768.1,3.3098]
[1753909756420,3.6685,3768.2,3768.1,3.3098]
[1753909756817,3.6685,3768.2,3768.1,3.7346]
[1753909757327,2.9727,3768.2,3768.1,3.7346]
[1753909757930,3.6685,3768.2,3768.1,3.7346]
[1753909758231,3.6685,3768.2,3768.1,0.6903]
[1753909758624,2.37616,3767.7,3767.6,1.4735]
[1753909758829,0.8406,3768.0,3767.8,1.4735]
[1753909759127,1.4438,3767.9,3767.8,3.7346]
[1753909759328,2.9727,3767.9,3767.8,3.7346]
[1753909763524,3.2078,3768.4,3768.2,0.5949]
[1753909763731,3.50357,3768.3,3768.2,1.4735]
[1753909764222,3.50357,3768.3,3768.2,3.7346]
[1753909764820,4.6516,3768.8,3768.7,3.0443]
[1753909765024,3.647,3768.8,3768.7,3.7346]
[1753909765225,5.595,3768.8,3768.7,3.7346]
[1753909765424,6.1805,3768.8,3768.7,3.7346]
[1753909766128,3.2078,3768.8,3768.7,3.7346]
[1753909766626,0.6883,3769.1,3768.7,3.7346]
[1753909766831,0.8406,3769.2,3768.8,3.7346]
[1753909766832,1.1275,3768.9,3768.8,3.7346]
[1753909768125,1.1275,3768.9,3768.8,4.2654]
[1753909768824,2.4324,3768.9,3768.8,4.2654]
[1753909769025,3.0329,3768.9,3768.8,4.2654]
[1753909769724,2.1471,3768.9,3768.8,4.2654]
[1753909770627,3.0329,3768.9,3768.8,4.2654]
[1753909771532,3.0329,3768.9,3768.8,3.7346]
[1753909772327,1.1275,3768.9,3768.8,3.7346]
[1753909772531,3.2078,3769.3,3769.2,1.95214]
[1753909772829,3.2078,3769.3,3769.2,4.17144]
[1753909773734,2.9735,3769.6,3769.5,1.9521]
[1753909774031,2.9735,3769.6,3769.5,4.1714]
[1753909774425,2.9735,3769.6,3769.5,3.6407]
[1753909778032,3.6042,3769.6,3769.5,3.6407]
[1753909781935,2.9735,3769.6,3769.5,3.6407]
[1753909784535,2.9735,3769.6,3769.5,4.1714]
[1753909785238,2.9735,3769.6,3769.5,3.6407]
[1753909788938,3.6042,3769.6,3769.5,3.6407]
[1753909800453,2.9735,3769.6,3769.5,3.6407]
[1753909801047,3.6102,3769.6,3769.5,3.6407]
[1753909801649,2.9735,3769.6,3769.5,7.32508]
[1753909801955,3.6102,3769.6,3769.5,3.68438]
[1753909802148,4.41736109,3769.6,3769.5,3.68438]
[1753909802348,4.41736109,3769.6,3769.5,4.33108]
[1753909802749,4.41736109,3769.6,3769.5,5.21768]
[1753909803449,4.41736109,3769.6,3769.5,5.62678]
[1753909807054,4.41736109,3769.6,3769.5,6.16998]
[1753909807550,4.41736109,3769.6,3769.5,6.78038]
[1753909808856,7.62516109,3769.6,3769.5,6.78038]
[1753909809454,7.62516109,3769.6,3769.5,3.68438]
[1753909810058,7.62516109,3769.6,3769.5,4.33108]
[1753909812862,7.62516109,3769.6,3769.5,5.62678]
[1753909814258,7.62516109,3769.6,3769.5,6.16998]
[1753909814762,7.62516109,3769.6,3769.5,6.78038]
[1753909818071,4.01496109,3769.6,3769.5,7.19078]
[1753909818372,18.77064,3769.7,3769.5,7.19078]
[1753909818566,18.77064,3769.7,3769.6,1.89335]
[1753909818772,18.77064,3769.7,3769.6,4.03705]
[1753909819171,18.77064,3769.7,3769.6,3.5064]
[1753909820073,0.53064,3769.7,3769.6,3.5064]
[1753909820972,0.53063,3769.8,3769.7,1.89334]
[1753909821273,18.241,3769.9,3769.7,1.89334]
[1753909821475,20.32432,3769.9,3769.8,3.5064]
[1753909823174,18.77162,3769.9,3769.8,3.5064]
[1753909824474,19.65542,3769.9,3769.8,3.5064]
[1753909824870,20.32432,3769.9,3769.8,3.5064]
[1753909826165,2.08332,3769.9,3769.8,3.5064]
[1753909826371,1.41438,3770.2,3770.1,1.3627]
[1753909826673,3.51748,3770.2,3770.1,3.5064]
[1753909826872,4.15418,3770.2,3770.1,3.5064]
[1753909827876,4.15421,3769.9,3769.8,3.096]
[1753909828274,3.6236,3769.8,3769.7,4.33108]
[1753909828569,3.6236,3769.8,3769.7,4.74018]
[1753909829872,3.6317,3769.8,3769.7,3.68438]
[1753909830479,2.9869,3769.8,3769.7,4.75608]
[1753909830780,2.9869,3769.8,3769.7,7.15748]
[1753909831678,21.2219,3769.8,3769.7,7.15748]
[1753909832080,19.2354,3769.8,3769.7,7.15748]
[1753909832274,0.53061,3769.9,3769.7,5.70588]
[1753909832580,2.43581,3769.9,3769.8,2.4014]
[1753909832773,3.02381,3769.9,3769.8,2.4014]
[1753909832974,3.02381,3769.9,3769.8,2.8185]
[1753909833174,3.02381,3769.9,3769.8,3.4731]
[1753909833581,3.43521,3769.9,3769.8,3.4731]
[1753909833881,4.24106007,3769.9,3769.8,1.0717]
[1753909834473,3.43521,3769.9,3769.8,3.4731]
[1753909835778,3.43521,3769.9,3769.8,7.15748]
[1753909836292,3.43521,3769.9,3769.8,4.75608]
[1753909836479,4.24108301,3769.9,3769.8,4.75608]
[1753909836681,4.08001,3769.9,3769.8,5.55308]
[1753909837078,4.88583435,3769.9,3769.8,5.55308]
[1753909837979,23.11783435,3769.9,3769.8,6.10158]
[1753909838174,23.11783435,3769.9,3769.8,6.75618]
[1753909840384,23.11783435,3769.9,3769.8,5.30458]
[1753909840682,23.11783435,3769.9,3769.8,3.68438]
[1753909840987,2.9046,3769.2,3769.1,6.6809]
[1753909841486,1.0215,3769.2,3769.1,6.6809]
[1753909843385,1.0215,3769.4,3769.3,3.4731]
[1753909843585,0.4335,3769.4,3769.3,3.4731]
[1753909844490,18.231,3769.5,3769.4,4.00378]
[1753909844679,0.53066,3769.6,3769.4,2.70868]
[1753909844883,3.02386,3769.6,3769.5,3.4731]
[1753909845488,3.02386,3769.6,3769.5,7.15748]
[1753909847388,0.4335,3769.6,3769.5,5.58194]
[1753909847589,18.231,3769.7,3769.5,5.58194]
[1753909847792,0.6475,3769.9,3769.7,1.89754]
[1753909847987,18.229,3769.8,3769.7,4.00374]
[1753909849591,18.8765,3769.8,3769.7,4.00374]
[1753909849889,19.7007,3769.8,3769.7,4.00374]
[1753909850083,1.4717,3769.8,3769.7,4.00374]
[1753909850282,1.4717,3769.8,3769.7,7.68812]
[1753909852594,2.4932,3769.8,3769.7,7.68812]
[1753909858397,2.9046,3769.8,3769.7,7.68812]
[1753909858597,1.0215,3769.8,3769.7,7.68812]
[1753909858898,19.2171,3770.0,3769.9,1.61921]
[1753909859091,20.7085,3770.0,3769.9,4.05321]
[1753909860396,21.6743,3770.0,3769.9,7.73759]
[1753909860596,21.1437,3770.0,3769.9,7.73759]
[1753909860996,2.9177,3770.0,3769.9,7.73759]
[1753909862497,3.5685,3770.0,3769.9,7.20698]
[1753909864099,2.9177,3770.0,3769.9,7.20698]
[1753909867705,3.5685,3770.0,3769.9,7.20698]
[1753909873206,2.9177,3770.0,3769.9,7.20698]
[1753909877803,1.021,3770.1,3770.0,4.0532]
[1753909878103,2.9177,3770.1,3770.0,4.0532]
[1753909879413,21.22805,3770.4,3770.3,1.93486]
[1753909879603,22.46795972,3770.4,3770.3,3.5226]
[1753909880312,22.46795972,3770.4,3770.3,7.20698]
[1753909883910,23.11875972,3770.4,3770.3,7.20698]
[1753909884412,21.93740972,3770.4,3770.3,7.20698]
[1753909884812,21.50220972,3770.4,3770.3,7.20698]
[1753909885614,18.211,3770.5,3770.4,1.93484]
[1753909885909,2.9177,3770.6,3770.5,4.05312]
[1753909886106,0.80469286,3770.6,3770.5,4.05312]
[1753909886707,0.38,3770.7,3770.5,1.93482]
[1753909886909,0.38,3770.7,3770.6,3.5226]
[1753909887110,3.2977,3770.7,3770.6,3.5226]
[1753909890414,3.2977,3770.7,3770.6,7.20698]
[1753909891809,3.9356,3770.7,3770.6,7.20698]
[1753909892513,3.2977,3770.7,3770.6,7.20698]
[1753909896114,3.9356,3770.7,3770.6,7.20698]
[1753909898522,3.2977,3770.7,3770.6,7.20698]
[1753909898820,0.38,3770.7,3770.6,7.20698]
[1753909901121,1.51734,3771.2,3771.1,3.4062]
[1753909901423,0.4173,3771.5,3771.4,1.9153]
[1753909901621,0.6548,3771.6,3771.4,1.9153]
[1753909901822,1.4903,3771.6,3771.4,1.9153]
[1753909902017,1.4903,3771.6,3771.5,3.4062]
[1753909902322,3.41783,3771.9,3771.8,2.7869]
[1753909902528,2.8875,3771.9,3771.8,3.4062]
[1753909903128,2.35272,3772.0,3771.9,2.7995]
[1753909903329,3.8626,3772.8,3771.8,3.2078]
[1753909903626,2.8875,3772.6,3772.5,3.4062]
[1753909903924,4.85917814,3772.6,3772.5,2.3985]
[1753909904227,4.85917814,3772.6,3772.5,1.0379]
[1753909904727,4.85917814,3772.6,3772.5,0.6193]
[1753909905428,4.85917814,3772.6,3772.5,4.30368]
[1753909905618,4.05563,3772.6,3772.5,4.30368]
[1753909906519,0.53023,3772.6,3772.5,7.09058]
[1753909906921,18.72923,3772.7,3772.5,7.09058]
[1753909907226,18.199,3772.7,3772.6,3.4062]
[1753909907428,0.53019,3772.9,3772.6,1.3849]
[1753909907617,18.72618,3773.0,3772.7,1.91512]
[1753909907825,2.8875,3772.9,3772.8,3.4062]
[1753909908832,1.0651,3773.1,3773.0,1.3849]
[1753909909032,2.8875,3773.1,3773.0,3.4062]
[1753909909435,3.5254,3773.1,3773.0,3.4062]
[1753909910737,3.5254,3773.1,3773.0,7.09058]
[1753909912334,2.4772,3773.1,3773.0,7.09058]
[1753909912835,2.4772,3773.1,3773.0,7.62076]
[1753909913235,2.8875,3773.3,3773.2,1.91504]
[1753909913434,2.8875,3773.3,3773.2,1.90845395]
[1753909913632,2.4772,3773.3,3773.2,1.90845395]
[1753909913834,0.4173,3773.3,3773.2,3.31045395]
[1753909914037,2.02041,3773.5,3773.2,3.92975395]
[1753909914344,2.43771,3773.5,3773.4,3.4062]
[1753909914533,0.53011,3773.5,3773.4,3.4062]
[1753909914735,0.5301,3773.6,3773.4,1.3849]
[1753909914942,2.0204,3773.6,3773.5,3.4062]
[1753909915146,3.0073,3773.6,3773.5,3.4062]
[1753909915448,3.4176,3773.6,3773.5,7.09058]
[1753909915645,4.0555,3773.6,3773.5,7.09058]
[1753909917546,4.0555,3773.6,3773.5,5.28758]
[1753909918146,4.0555,3773.6,3773.5,3.68438]
[1753909919950,4.0555,3773.6,3773.5,4.29158]
[1753909921944,4.0555,3773.6,3773.5,3.68438]
[1753909922251,9.0555,3773.6,3773.5,3.68438]
[1753909925352,4.0555,3773.6,3773.5,3.68438]
[1753909926352,4.0555,3773.6,3773.5,4.29158]
[1753909927746,1.517,3773.6,3773.5,7.08238]
[1753909927946,0.4173,3773.6,3773.5,7.08238]
[1753909930352,19.09909,3773.7,3773.5,7.08238]
[1753909930656,19.09909,3773.7,3773.6,3.398]
[1753909931252,19.9003224,3773.7,3773.6,3.398]
[1753909931456,21.3544224,3773.7,3773.6,3.398]
[1753909932251,21.7863224,3773.7,3773.6,3.398]
[1753909932457,22.7722224,3773.7,3773.6,3.398]
[1753909935560,22.7722224,3773.7,3773.6,7.08238]
[1753909935761,23.71830498,3773.7,3773.6,7.08238]
[1753909937460,23.4160224,3773.7,3773.6,3.68438]
[1753909937655,1.32532,3773.4,3772.7,0.6072]
[1753909937966,3.4021,3772.8,3772.7,3.398]
[1753909938356,2.9716,3772.8,3772.7,3.398]
[1753909938564,2.331,3772.8,3772.7,2.3896]
[1753909938962,1.51613,3772.6,3772.5,3.6056]
[1753909939166,22.21893,3772.6,3772.5,0.3978]
[1753909939566,22.21893,3772.6,3772.5,3.0032]
[1753909939768,22.21893,3772.6,3772.5,3.398]
[1753909939967,23.0220855,3772.6,3772.5,3.398]
[1753909940161,0.53028,3772.3,3772.1,3.2078]
[1753909940366,3.40218,3772.3,3772.2,3.398]
[1753909940959,2.97168,3772.3,3772.2,3.398]
[1753909941160,3.40218,3772.3,3772.2,3.398]
[1753909941966,1.90058,3772.3,3772.2,2.3896]
[1753909942155,1.90058,3772.3,3772.2,7.08238]
[1753909942777,0.94608258,3773.1,3772.2,7.08238]
[1753909942778,6.10184258,3773.1,3773.0,0.7926]
[1753909942972,22.37790353,3773.1,3773.0,3.398]
[1753909943266,23.02170353,3773.1,3773.0,1.5575]
[1753909943466,23.02170353,3773.1,3773.0,1.005]
[1753909943961,22.49154353,3773.1,3772.2,3.68438]
[1753909944165,2.8719,3772.3,3772.2,3.68438]
[1753909944364,24.8955,3772.3,3772.2,3.68438]
[1753909944561,0.9873,3771.5,3771.4,3.3212]
[1753909944764,0.6392,3771.7,3771.5,1.4457]
[1753909944962,1.60146,3771.7,3771.6,2.7908]
[1753909945162,1.60146,3771.7,3771.6,3.398]
[1753909945565,3.40226,3771.7,3771.6,3.398]
[1753909946073,2.58736,3771.7,3771.6,3.398]
[1753909947668,4.04606,3771.7,3771.6,2.3896]
[1753909947862,4.04606,3771.7,3771.6,6.07398]
[1753909948176,4.04606,3771.7,3771.6,3.68438]
[1753909948473,4.04606,3771.7,3771.6,4.29158]
[1753909948671,4.04606,3771.7,3771.6,6.10198]
[1753909950777,4.04606,3771.7,3771.6,2.34094566]
[1753909951173,4.84609261,3771.7,3771.6,2.34094566]
[1753909951372,4.04606,3771.7,3771.6,2.34094566]
[1753909952470,4.04606,3771.7,3771.6,1.07402566]
[1753909952670,0.53044,3771.1,3771.0,1.4793]
[1753909952974,22.20214,3771.1,3771.0,1.4793]
[1753909953375,22.20214,3771.1,3771.0,1.9128]
[1753909953679,22.20214,3771.1,3771.0,3.5705]
[1753909955977,22.20214,3771.1,3771.0,7.25488]
[1753909957785,19.5618,3771.1,3771.0,7.25488]
[1753909957985,18.172,3771.1,3771.0,7.25488]
[1753909962081,1.326,3771.5,3771.0,7.25488]
[1753909962082,3.2078,3771.7,3771.6,0.549]
[1753909962280,3.2078,3771.7,3771.6,3.5705]
[1753909962481,3.7381,3772.1,3772.0,2.2918]
[1753909962682,24.7873,3772.1,3772.0,0.549]
[1753909962881,25.4108,3772.1,3772.0,0.6192]
[1753909963083,1.92013,3771.9,3771.8,1.9128]
[1753909963388,1.3898,3771.6,3771.5,1.9128]
[1753909963581,1.3898,3771.6,3771.1,1.4317]
[1753909963582,1.92023,3771.2,3771.1,1.4317]
[1753909963791,20.71673,3771.2,3771.1,3.5705]
[1753909963992,20.09323,3771.2,3771.1,3.5705]
[1753909964178,20.73343,3771.2,3771.1,3.5705]
[1753909964379,21.57963,3771.2,3771.1,3.5705]
[1753909965588,21.57963,3771.2,3771.1,7.25488]
[1753909965794,20.09323,3771.2,3771.1,7.25488]
[1753909966089,19.66673,3771.2,3771.1,7.25488]
[1753909966592,21.57963,3771.2,3771.1,7.25488]
[1753909967093,19.66673,3771.2,3771.1,7.25488]
[1753909967285,18.70343,3771.2,3771.1,7.25488]
[1753909969190,0.53039,3771.5,3771.1,7.25488]
[1753909969396,0.53038,3771.6,3771.5,3.5705]
[1753909969594,21.57858,3771.6,3771.5,3.5705]
[1753909970383,21.57858,3771.6,3771.5,7.25488]
[1753909971089,21.57858,3771.6,3771.5,5.73528]
[1753909971288,22.20208,3771.6,3771.5,5.73528]
[1753909971489,22.20208,3771.6,3771.5,3.68438]
[1753909972811,19.2387,3771.6,3771.5,5.28608]
[1753909973093,3.2078,3771.9,3771.7,3.5705]
[1753909973094,0.53035,3771.8,3771.7,3.5705]
[1753909973593,0.53028,3772.3,3771.8,1.4317]
[1753909973794,0.94608258,3773.0,3772.1,2.0509]
[1753909973993,0.53025,3772.6,3772.5,3.5705]
[1753909974291,0.80077459,3772.6,3772.5,3.5705]
[1753909974600,0.53017,3773.1,3772.8,1.4317]
[1753909974898,1.61449835,3773.0,3772.9,3.5705]
[1753909975089,19.14329835,3773.0,3772.9,3.5705]
[1753909975497,19.39481678,3773.0,3772.9,3.5705]
[1753909975693,19.39481678,3773.0,3772.9,7.25488]
[1753909975896,19.2217,3773.0,3772.9,7.25488]
[1753909976100,18.34212179,3773.0,3772.9,7.78507]
[1753909976495,0.17312179,3773.0,3772.9,7.25488]
[1753909976694,0.53018,3773.0,3772.9,5.11608]
[1753909976898,1.08098,3773.0,3772.9,5.11608]
[1753909977098,0.5508,3773.0,3772.9,5.11608]
[1753909977403,0.5508,3773.0,3772.9,7.25488]
[1753909977603,1.17037,3773.1,3772.9,5.84578]
[1753909977902,3.4997,3773.0,3772.9,3.68438]
[1753909979491,4.29871677,3773.0,3772.9,3.68438]
[1753909980096,22.46371677,3773.0,3772.9,3.68438]
[1753909980703,22.46371677,3773.0,3772.9,4.36848]
[1753909981096,22.46371677,3773.0,3772.9,3.68438]
[1753909982001,22.46371677,3773.0,3772.9,4.36848]
[1753909982393,22.46371677,3773.0,3772.9,4.79598]
[1753909982599,22.46371677,3773.0,3772.9,5.21198]
[1753909982804,22.46371677,3773.0,3772.9,3.68438]
[1753909983401,22.46371677,3773.0,3772.9,1.79508]
[1753909983601,0.97177,3771.7,3771.6,2.1798]
[1753909983804,1.21647,3771.7,3771.6,3.6706]
[1753909983997,0.53037,3771.7,3771.6,3.6706]
[1753909984803,0.53035,3771.8,3771.7,3.6706]
[1753909985005,0.53034,3771.9,3771.7,1.4541]
[1753909985304,0.97174,3771.9,3771.8,3.6706]
[1753909987002,0.97174,3771.9,3771.8,7.35498]
[1753909987799,1.21644,3771.9,3771.8,7.35498]
[1753909989100,1.12234,3771.9,3771.8,7.35498]
[1753909989300,0.97174,3771.9,3771.8,7.35498]
[1753909989600,1.12234,3771.9,3771.8,7.35498]
[1753909989902,1.21644,3771.9,3771.8,7.35498]
[1753909990404,1.12234,3771.9,3771.8,7.35498]
[1753909991304,0.97174,3771.9,3771.8,7.35498]
[1753909993002,0.97174,3771.9,3771.8,3.68438]
[1753909993204,5.08694,3771.9,3771.8,3.68438]
[1753909994005,4.42424,3771.9,3771.8,7.35498]
[1753909994706,5.08694,3771.9,3771.8,7.35498]
[1753910001312,5.08694,3771.9,3771.8,3.68438]
[1753910001811,5.08694,3771.9,3771.8,5.24868]
[1753910002111,5.08694,3771.9,3771.8,7.35498]
[1753910006420,5.8847325,3771.9,3771.8,7.35498]
[1753910006714,5.8847325,3771.9,3771.8,3.68438]
[1753910008614,5.9215325,3771.9,3771.8,3.68438]
[1753910009715,5.9215325,3771.9,3771.8,3.12845]
[1753910009910,0.6753,3771.1,3771.0,2.9496]
[1753910010111,18.6299,3771.1,3771.0,3.5894]
[1753910010319,18.6157,3771.1,3771.0,3.5894]
[1753910013015,18.5827387,3771.1,3771.0,3.5894]
[1753910013321,18.5827387,3771.1,3771.0,7.27378]
[1753910016225,18.158,3771.1,3771.0,7.27378]
[1753910017833,0.53043,3771.2,3771.1,1.4789]
[1753910018034,18.68743,3771.2,3771.1,3.5894]
[1753910018836,0.53043,3771.2,3771.1,3.5894]
[1753910019038,18.68743,3771.2,3771.1,3.5894]
[1753910019538,19.15933,3771.2,3771.1,3.5894]
[1753910020137,19.27233,3771.2,3771.1,3.5894]
[1753910020337,19.45313,3771.2,3771.1,7.27378]
[1753910022137,20.16003,3771.2,3771.1,5.16168]
[1753910022336,23.36783,3771.2,3771.1,7.27378]
[1753910023944,23.36783,3771.2,3771.1,3.68438]
[1753910024244,24.16873068,3771.2,3771.1,3.68438]
[1753910025236,24.16873068,3771.2,3771.1,3.55718]
[1753910025237,24.35280483,3771.2,3771.1,3.55718]
[1753910025741,32.23889934,3771.2,3770.5,0.6398]
[1753910025942,3.73831,3770.6,3770.5,0.6398]
[1753910026137,21.89431,3770.6,3770.5,0.6398]
[1753910028746,22.69497486,3770.6,3770.5,0.6398]
[1753910029246,22.69497486,3770.6,3770.5,5.16168]
[1753910030246,22.69497486,3770.6,3770.5,3.68438]
[1753910030448,22.69497486,3770.6,3770.5,4.32418]
[1753910030637,22.69497486,3770.6,3770.5,3.68438]
[1753910031039,22.69497486,3770.6,3770.5,3.14464]
[1753910031237,0.53058,3770.1,3770.0,0.6398]
[1753910031545,22.69399876,3770.1,3770.0,0.6398]
[1753910031954,22.69399876,3770.1,3770.0,1.4773]
[1753910032450,22.11718,3770.1,3770.0,1.4773]
[1753910032645,23.42581773,3770.1,3770.0,1.4773]
[1753910033252,22.62648,3770.1,3770.0,3.1516]
[1753910033452,22.62648,3770.1,3770.0,3.5894]
[1753910034547,22.62648,3770.1,3770.0,7.27378]
[1753910040149,22.62648,3770.1,3770.0,5.85618]
[1753910040451,22.71688,3770.1,3770.0,4.32418]
[1753910040852,22.71688,3770.1,3770.0,5.30638]
[1753910041157,22.62648,3770.1,3770.0,4.32418]
[1753910041456,22.71688,3770.1,3770.0,5.30638]
[1753910041850,22.62648,3770.1,3770.0,6.48868]
[1753910042447,22.62648,3770.1,3770.0,7.54878]
[1753910043051,23.42879665,3770.1,3770.0,7.54878]
[1753910043752,23.42879665,3770.1,3770.0,4.67874]
[1753910043960,27.51582509,3770.1,3770.0,2.26838]
[1753910044259,27.51582509,3770.1,3770.0,0.58976]
[1753910044551,32.51582509,3770.1,3770.0,1e-05]
[1753910044757,1.3288,3769.3,3769.2,3.2246]
[1753910044958,19.6956,3769.3,3769.2,3.2246]
[1753910045952,19.6956,3769.3,3769.2,3.8986]
[1753910046351,0.53074,3769.0,3768.9,5.4502]
[1753910046552,18.68674,3769.0,3768.9,5.4502]
[1753910046752,18.68674,3769.0,3768.9,2.2424]
[1753910046953,18.68674,3769.0,3768.9,3.8986]
[1753910047958,18.68674,3769.0,3768.9,7.58298]
[1753910048554,0.53072,3769.2,3768.9,5.21548]
[1753910048749,0.53072,3769.2,3769.1,3.8986]
[1753910049059,18.68672,3769.2,3769.1,3.8986]
[1753910050452,18.68672,3769.2,3769.1,7.58298]
[1753910051360,0.53071,3769.3,3769.1,5.21548]
[1753910051664,18.156,3769.2,3769.1,7.58298]
[1753910053158,18.7071,3769.2,3769.1,7.58298]
[1753910053861,18.6168,3769.2,3769.1,3.68438]
[1753910054063,19.8768,3769.2,3769.1,3.68438]
[1753910054265,20.68044273,3769.2,3769.1,3.14141]
[1753910056868,20.68044273,3769.2,3769.1,4.79761]
[1753910058267,20.68044273,3769.2,3769.1,3.81541]
[1753910059164,20.68044273,3769.2,3769.1,4.79761]
[1753910060364,20.68044273,3769.2,3769.1,4.02921]
[1753910060561,24.06289308,3769.2,3769.1,1.10407]
[1753910060762,24.24671368,3769.2,3769.1,0.43007]
[1753910061268,25.19279626,3769.2,3769.1,0.43007]
[1753910061573,24.24666768,3769.2,3769.1,2.08627]
[1753910061773,0.7981,3768.9,3768.8,9.39e-06]
[1753910062072,23.88924273,3768.9,3768.8,9.39e-06]
[1753910062761,23.88462724,3768.9,3768.8,9.39e-06]
[1753910063460,23.88462724,3768.9,3768.8,0.67400939]
[1753910064472,22.96192724,3768.9,3768.8,9.39e-06]
[1753910067477,23.49267724,3768.9,3768.8,9.39e-06]
[1753910067674,23.67637389,3768.9,3768.8,9.39e-06]
[1753910068381,1.9669,3768.8,3768.7,0.9822]
[1753910068677,2.92724273,3768.8,3768.7,0.9822]
[1753910069371,1.0598,3768.6,3768.5,1.8321]
[1753910069574,21.11524273,3768.6,3768.5,3.2892]
[1753910069776,0.53089,3767.9,3767.8,2.3696]
[1753910069969,18.68689,3767.9,3767.8,3.3335]
[1753910070373,19.18129,3767.9,3767.8,4.071]
[1753910070574,20.07509,3767.9,3767.8,4.071]
[1753910071269,19.18129,3767.9,3767.8,4.071]
[1753910071975,20.07509,3767.9,3767.8,4.071]
[1753910072164,20.27709,3767.9,3767.8,4.071]
[1753910072367,20.84249,3767.9,3767.8,4.071]
[1753910073877,21.65021894,3767.9,3767.8,4.071]
[1753910076982,21.65021894,3767.9,3767.8,2.0847]
[1753910077280,21.65021894,3767.9,3767.8,4.071]
[1753910078178,0.80772894,3767.9,3767.8,4.071]
[1753910078480,18.96372894,3767.9,3767.8,4.071]
[1753910083283,18.96375303,3767.9,3767.8,4.071]
[1753910083788,2.68654,3767.6,3767.5,3.3335]
[1753910083982,24.85809303,3767.6,3767.5,3.3335]
[1753910084286,24.85809303,3767.6,3767.5,4.071]
[1753910085479,0.53101,3767.1,3767.0,3.3154]
[1753910085681,20.84161,3767.1,3767.0,4.071]
[1753910087984,21.64956663,3767.1,3767.0,4.071]
[1753910088384,21.64956663,3767.1,3767.0,2.4829]
[1753910088590,21.64956663,3767.1,3767.0,3.4468]
[1753910088789,21.64956663,3767.1,3767.0,4.071]
[1753910090785,21.44756663,3767.1,3767.0,4.071]